bitfinex-derivatives/quotes_BTCF0:USTF0_20251030
["timestamp","ask_amount","ask_price","bid_price","bid_amount"]
[1761859033572,0.06593646,107490.0,107480.0,0.51586328]
[1761859033771,0.06593646,107490.0,107480.0,0.60892188]
[1761859036687,0.02177646,107490.0,107480.0,0.80374516]
[1761859036881,0.001,107490.0,107480.0,0.80654516]
[1761859037082,0.001,107490.0,107480.0,0.80754516]
[1761859038482,0.05822075,107500.0,107490.0,0.0930505]
[1761859038692,0.05822075,107500.0,107490.0,0.28787378]
[1761859038989,0.06571721,107500.0,107490.0,0.28787378]
[1761859039784,0.01433075,107500.0,107490.0,0.28787378]
[1761859039989,0.00105075,107500.0,107490.0,0.48549706]
[1761859040195,0.00105075,107500.0,107490.0,0.28787378]
[1761859040384,0.00702075,107500.0,107490.0,0.28787378]
[1761859041078,0.00702075,107500.0,107490.0,0.29067378]
[1761859041481,0.02000075,107500.0,107490.0,0.28787378]
[1761859041675,0.02000075,107500.0,107490.0,0.29067378]
[1761859041877,0.00702075,107500.0,107490.0,0.28787378]
[1761859042288,0.00602075,107500.0,107490.0,0.28787378]
[1761859042688,0.00602075,107500.0,107490.0,0.28887378]
[1761859043087,0.00602075,107500.0,107490.0,0.0940505]
[1761859043286,0.00602075,107500.0,107490.0,0.28887378]
[1761859043881,0.04136075,107500.0,107490.0,0.28887378]
[1761859044082,0.04136075,107500.0,107490.0,0.48369706]
[1761859044282,0.04136075,107500.0,107490.0,0.28887378]
[1761859044991,0.01900075,107500.0,107490.0,0.28887378]
[1761859046086,0.06389075,107500.0,107490.0,0.28887378]
[1761859052602,0.07138721,107500.0,107490.0,0.28887378]
[1761859057097,0.01351721,107500.0,107490.0,0.28887378]
[1761859057404,0.07138721,107500.0,107490.0,0.28887378]
[1761859057907,0.07138721,107500.0,107490.0,0.48369706]
[1761859058103,0.04902721,107500.0,107490.0,0.48369706]
[1761859058309,0.07138721,107500.0,107490.0,0.48369706]
[1761859059108,0.07138721,107500.0,107490.0,0.48569706]
[1761859059409,0.07138721,107500.0,107490.0,0.49487516]
[1761859059809,0.07138721,107500.0,107490.0,0.49187516]
[1761859060011,0.04885721,107500.0,107490.0,0.49287516]
[1761859060209,0.05817,107520.0,107500.0,0.0930341]
[1761859060507,0.05817,107520.0,107510.0,0.80335986]
[1761859060708,0.04313646,107520.0,107510.0,0.60853658]
[1761859061107,0.04313646,107520.0,107510.0,0.80335986]
[1761859061404,0.02077646,107520.0,107510.0,0.80335986]
[1761859061604,0.04298646,107520.0,107510.0,0.80335986]
[1761859062006,0.06463646,107520.0,107510.0,0.80335986]
[1761859062211,0.06563646,107520.0,107510.0,0.80335986]
[1761859062718,0.06663646,107520.0,107510.0,0.80335986]
[1761859062909,0.06563646,107520.0,107510.0,0.80335986]
[1761859063112,0.06463646,107520.0,107510.0,0.80435986]
[1761859063814,0.06463646,107520.0,107510.0,0.32168]
[1761859064117,0.06463646,107520.0,107510.0,0.60953658]
[1761859064815,0.06463646,107520.0,107510.0,0.51650328]
[1761859065007,0.06463646,107520.0,107510.0,0.001]
[1761859065219,0.06463646,107520.0,107510.0,0.51650328]
[1761859065514,0.06463646,107520.0,107510.0,0.60953748]
[1761859066216,0.06563646,107520.0,107510.0,0.60853748]
[1761859066415,0.06663646,107520.0,107510.0,0.60853748]
[1761859066716,0.06663646,107520.0,107510.0,0.51550328]
[1761859068106,0.26145974,107520.0,107510.0,0.51550328]
[1761859068308,0.26045974,107520.0,107510.0,0.51550328]
[1761859068515,0.26045974,107520.0,107510.0,0.51650328]
[1761859069118,0.26045974,107520.0,107510.0,0.51550328]
[1761859069319,0.06663646,107520.0,107510.0,0.51550328]
[1761859072016,0.06563646,107520.0,107510.0,0.51550328]
[1761859072216,0.47766826,107520.0,107510.0,0.32164]
[1761859072513,0.47766826,107520.0,107510.0,0.001]
[1761859072919,0.05671,107510.0,107500.0,0.51554328]
[1761859073116,0.0875917,107510.0,107500.0,0.51554328]
[1761859073417,0.28241498,107510.0,107500.0,0.51554328]
[1761859074826,0.0875917,107510.0,107500.0,0.51554328]
[1761859075130,0.06420646,107510.0,107500.0,0.51554328]
[1761859075422,0.06620646,107510.0,107500.0,0.51554328]
[1761859077319,0.28439635,107510.0,107500.0,0.32072]
[1761859078316,0.88439635,107510.0,107500.0,0.32072]
[1761859078515,0.88439635,107510.0,107500.0,0.51554328]
[1761859080218,0.87689989,107510.0,107500.0,0.51554328]
[1761859080416,0.88439635,107510.0,107500.0,0.51554328]
[1761859081916,0.05671,107500.0,107490.0,0.02120592]
[1761859082115,0.06420646,107500.0,107490.0,0.5367092]
[1761859082725,0.06420646,107500.0,107490.0,0.6297617]
[1761859083026,0.06420646,107500.0,107490.0,0.6307617]
[1761859083723,0.06420646,107500.0,107490.0,0.82558498]
[1761859084522,0.01285,107510.0,107500.0,0.0930438]
[1761859084721,0.01285,107510.0,107500.0,0.48549036]
[1761859085526,0.01285,107510.0,107500.0,0.0958438]
[1761859085722,0.03606,107510.0,107500.0,0.48269036]
[1761859086023,0.01485,107510.0,107500.0,0.48269036]
[1761859086213,0.03706,107510.0,107500.0,0.48269036]
[1761859087028,0.05871,107510.0,107500.0,0.48269036]
[1761859087926,0.05771,107510.0,107500.0,0.48369036]
[1761859088128,0.05671,107510.0,107500.0,0.48369036]
[1761859088528,0.01285,107510.0,107500.0,0.48369036]
[1761859088828,0.05714,107520.0,107510.0,0.0930353]
[1761859089017,0.05714,107520.0,107510.0,0.60865858]
[1761859089217,0.06463646,107520.0,107510.0,0.60865858]
[1761859089431,0.06463646,107520.0,107510.0,0.3208]
[1761859089628,0.25945974,107520.0,107510.0,0.3208]
[1761859089927,0.25945974,107520.0,107510.0,0.51562328]
[1761859090715,0.25945974,107520.0,107500.0,0.19582328]
[1761859090716,0.05802,107510.0,107500.0,0.001]
[1761859090925,0.26033974,107510.0,107500.0,0.3218]
[1761859091219,0.26033974,107510.0,107500.0,0.51562328]
[1761859091526,0.06551646,107510.0,107500.0,0.3208]
[1761859092028,0.06551646,107510.0,107500.0,0.51661945]
[1761859092824,0.06651646,107510.0,107500.0,0.51561945]
[1761859093226,0.01467,107510.0,107500.0,0.60866375]
[1761859094027,0.06048,107510.0,107500.0,0.60866375]
[1761859094329,0.002,107510.0,107500.0,0.67493535]
[1761859094628,0.05809,107520.0,107500.0,0.67593535]
[1761859094826,0.00749646,107510.0,107500.0,0.4811159]
[1761859095423,0.05809,107520.0,107500.0,0.4811159]
[1761859095624,0.04212646,107510.0,107500.0,0.4801159]
[1761859095832,0.04212646,107510.0,107500.0,0.67593535]
[1761859096127,0.03463,107510.0,107500.0,0.60966375]
[1761859096323,0.01262,107510.0,107500.0,0.60966375]
[1761859099632,0.01262,107510.0,107500.0,0.67593535]
[1761859100734,0.05649,107520.0,107500.0,0.67592905]
[1761859100935,0.00749646,107510.0,107500.0,0.4839096]
[1761859101137,0.00749646,107510.0,107500.0,0.4811096]
[1761859101442,0.05649,107520.0,107510.0,0.093036]
[1761859101734,0.00749646,107510.0,107500.0,0.4839095]
[1761859102129,0.05649,107520.0,107500.0,0.77076755]
[1761859102330,0.05649,107520.0,107510.0,0.19481945]
[1761859102728,0.06498646,107520.0,107510.0,0.19481945]
[1761859103329,0.06398646,107520.0,107510.0,0.19481945]
[1761859103837,0.06498646,107520.0,107510.0,0.19481945]
[1761859104030,0.06598646,107520.0,107510.0,0.19481945]
[1761859104834,0.06598646,107520.0,107510.0,0.28785445]
[1761859105338,0.06598646,107520.0,107510.0,0.19481945]
[1761859107643,0.06598646,107520.0,107510.0,0.28785325]
[1761859108334,0.01528,107520.0,107510.0,0.28785325]
[1761859108536,0.002,107520.0,107510.0,0.35412485]
[1761859109438,0.002,107520.0,107510.0,0.35692485]
[1761859109740,0.001,107520.0,107510.0,0.36646539]
[1761859109942,0.001,107520.0,107510.0,0.36746539]
[1761859110139,0.05619,107530.0,107510.0,0.46049919]
[1761859110435,0.06368646,107530.0,107520.0,0.51565945]
[1761859110639,0.05619,107530.0,107520.0,0.51565945]
[1761859110938,0.06368646,107530.0,107520.0,0.51565945]
[1761859111937,0.06368646,107530.0,107520.0,0.60868565]
[1761859112339,0.02047646,107530.0,107520.0,0.60868565]
[1761859112942,0.04248646,107530.0,107520.0,0.60968565]
[1761859113342,0.06368646,107530.0,107520.0,0.60968565]
[1761859115637,0.04248646,107530.0,107520.0,0.60968565]
[1761859116046,0.06368646,107530.0,107520.0,0.60968565]
[1761859117947,0.00749646,107530.0,107520.0,0.60968565]
[1761859118148,0.05606,107540.0,107530.0,0.0930176]
[1761859118344,0.05606,107540.0,107530.0,0.19481945]
[1761859118540,0.06355646,107540.0,107520.0,0.4148662]
[1761859118741,0.05606,107540.0,107530.0,0.19481945]
[1761859119140,0.06355646,107540.0,107530.0,0.19481945]
[1761859119348,0.06455646,107540.0,107530.0,0.19481945]
[1761859120253,0.05706,107540.0,107530.0,0.19481945]
[1761859120550,0.06555646,107540.0,107530.0,0.19481945]
[1761859120753,0.05585,107530.0,107520.0,0.32084]
[1761859120955,0.06334646,107530.0,107520.0,0.51565945]
[1761859121250,0.05585,107530.0,107520.0,0.60868565]
[1761859125157,0.0343,107530.0,107520.0,0.60868565]
[1761859125650,0.01294,107530.0,107520.0,0.60868565]
[1761859125954,0.0343,107530.0,107520.0,0.8035051]
[1761859126142,0.0343,107530.0,107520.0,0.60868565]
[1761859128542,0.04179646,107530.0,107520.0,0.60868565]
[1761859129454,0.02043646,107530.0,107520.0,0.60868565]
[1761859130062,0.02043646,107530.0,107520.0,0.8035051]
[1761859133254,0.01285,107540.0,107520.0,0.8035051]
[1761859133557,0.05576,107540.0,107530.0,0.28783695]
[1761859133952,0.06325646,107540.0,107530.0,0.28783695]
[1761859139363,0.00749646,107540.0,107530.0,0.28783695]
[1761859139662,0.04179646,107540.0,107530.0,0.28783695]
[1761859139865,0.06334646,107540.0,107530.0,0.28783695]
[1761859140251,0.05585,107540.0,107530.0,0.28783695]
[1761859140449,0.06334646,107540.0,107530.0,0.28783695]
[1761859140853,0.06334646,107540.0,107530.0,0.19481945]
[1761859141267,0.06334646,107540.0,107530.0,0.28783695]
[1761859143464,0.06334646,107540.0,107530.0,0.19481945]
[1761859144267,0.06334646,107540.0,107530.0,0.28783695]
[1761859146259,0.06334646,107540.0,107530.0,0.19481945]
[1761859147570,0.06334646,107540.0,107530.0,0.28783695]
[1761859150573,0.06334646,107540.0,107530.0,0.19481945]
[1761859151176,0.06334646,107540.0,107530.0,0.51537945]
[1761859151374,0.06334646,107540.0,107530.0,0.5152426]
[1761859153275,0.06334646,107540.0,107530.0,0.1946826]
[1761859153474,0.06334646,107540.0,107530.0,0.5152426]
[1761859153971,0.06334646,107540.0,107530.0,0.1946826]
[1761859154173,0.06334646,107540.0,107530.0,0.5152426]
[1761859154375,0.06334646,107540.0,107530.0,0.1946826]
[1761859154575,0.06334646,107540.0,107530.0,0.5152426]
[1761859155578,0.06334646,107540.0,107530.0,0.1946826]
[1761859155778,0.06334646,107540.0,107530.0,0.5152426]
[1761859157082,0.06334646,107540.0,107530.0,0.6082601]
[1761859157282,0.06334646,107540.0,107530.0,0.5152426]
[1761859157979,0.06334646,107540.0,107530.0,0.6082601]
[1761859158580,0.06334646,107540.0,107530.0,0.5152426]
[1761859159280,0.05713,107530.0,107520.0,0.2609542]
[1761859159480,0.06462646,107530.0,107520.0,0.7761968]
[1761859160185,0.06462646,107530.0,107520.0,0.3868316]
[1761859160390,0.06462646,107530.0,107520.0,0.2609542]
[1761859160578,0.06462646,107530.0,107520.0,0.5815142]
[1761859160779,0.06462646,107530.0,107520.0,0.5152426]
[1761859161082,0.06462646,107530.0,107520.0,0.5172426]
[1761859162084,0.25930906,107530.0,107520.0,0.5192426]
[1761859162588,0.25930906,107530.0,107520.0,0.32256]
[1761859163086,0.06462646,107530.0,107520.0,0.32256]
[1761859163291,0.26030906,107530.0,107520.0,0.5172426]
[1761859163993,0.26030906,107530.0,107520.0,0.5152426]
[1761859164188,0.06562646,107530.0,107520.0,0.5152426]
[1761859164382,0.26030906,107530.0,107520.0,0.5152426]
[1761859164896,0.26130906,107530.0,107520.0,0.5152426]
[1761859165486,0.2850116,107530.0,107520.0,0.5152426]
[1761859165692,0.2850116,107530.0,107520.0,0.32056]
[1761859166987,0.090329,107530.0,107520.0,0.5152426]
[1761859167188,0.06662646,107530.0,107520.0,0.5152426]
[1761859167387,0.06662646,107530.0,107520.0,0.7099252]
[1761859168896,0.06662646,107530.0,107520.0,0.5152426]
[1761859169196,0.06662646,107530.0,107520.0,0.7099252]
[1761859172694,0.06662646,107530.0,107520.0,0.8029513]
[1761859173297,0.06662646,107530.0,107520.0,0.7099252]
[1761859175502,0.02319646,107530.0,107520.0,0.8029514]
[1761859175797,0.002,107530.0,107520.0,0.8029514]
[1761859176389,0.05913,107530.0,107520.0,0.8029514]
[1761859176589,0.05913,107530.0,107520.0,0.7099252]
[1761859177090,0.05913,107530.0,107520.0,0.8029514]
[1761859177598,0.03624,107530.0,107520.0,0.8029514]
[1761859177900,0.03524,107530.0,107520.0,0.8029514]
[1761859178201,0.05637,107540.0,107520.0,0.8029514]
[1761859178398,0.06386646,107540.0,107530.0,0.1946826]
[1761859178791,0.04197646,107540.0,107530.0,0.1946826]
[1761859179390,0.06386646,107540.0,107530.0,0.1946826]
[1761859179787,0.00849646,107540.0,107530.0,0.4823825]
[1761859180394,0.00949646,107540.0,107530.0,0.4823825]
[1761859180698,0.03103646,107540.0,107530.0,0.4823825]
[1761859180902,0.04484646,107540.0,107530.0,0.4823825]
[1761859182804,0.06671646,107540.0,107530.0,0.1946826]
[1761859185902,0.06671646,107540.0,107530.0,0.2876999]
[1761859186704,0.06671646,107540.0,107530.0,0.29719904]
[1761859187901,0.06671646,107540.0,107530.0,0.1946826]
[1761859189008,0.06671646,107540.0,107530.0,0.2876999]
[1761859190906,0.06671646,107540.0,107530.0,0.4823825]
[1761859192609,0.002,107540.0,107530.0,0.5486541]
[1761859192801,0.05751,107550.0,107540.0,0.0930086]
[1761859193001,0.06500646,107550.0,107540.0,0.86936611]
[1761859195401,0.06500646,107550.0,107540.0,0.77635751]
[1761859195804,0.06500646,107550.0,107540.0,0.7099252]
[1761859196001,0.06500646,107550.0,107540.0,0.7109252]
[1761859196199,0.06500646,107550.0,107540.0,0.8039338]
[1761859196805,0.06500646,107550.0,107540.0,0.7109252]
[1761859197609,0.06500646,107550.0,107540.0,0.8039338]
[1761859198396,0.02011646,107550.0,107540.0,0.8039338]
[1761859198699,0.03564,107560.0,107550.0,0.093]
[1761859198905,0.06500646,107560.0,107550.0,0.15943231]
[1761859199101,0.04313646,107560.0,107550.0,0.4823652]
[1761859199701,0.02011646,107560.0,107550.0,0.4823652]
[1761859199901,0.02111646,107560.0,107550.0,0.4823652]
[1761859200101,0.02111646,107560.0,107550.0,0.4833652]
[1761859200410,0.06600646,107560.0,107550.0,0.3903652]
[1761859201407,0.06500646,107560.0,107550.0,0.3903652]
[1761859201896,0.06500646,107560.0,107550.0,0.4833652]
[1761859202712,0.02011646,107560.0,107550.0,0.4833652]
[1761859203206,0.0137,107570.0,107550.0,0.4861652]
[1761859203412,0.01381,107580.0,107560.0,0.9975592]
[1761859203607,0.01381,107580.0,107570.0,0.4823479]
[1761859203814,0.04432646,107580.0,107570.0,0.4823479]
[1761859204804,0.04532646,107580.0,107570.0,0.4823479]
[1761859205412,0.04832646,107580.0,107570.0,0.4823479]
[1761859205608,0.004,107580.0,107570.0,0.4823479]
[1761859206405,0.004,107580.0,107570.0,0.4851479]
[1761859207816,0.004,107580.0,107570.0,0.4823479]
[1761859209018,0.004,107580.0,107570.0,0.4851479]
[1761859209918,0.004,107580.0,107570.0,0.4823479]
[1761859210212,0.04083,107580.0,107570.0,0.0929826]
[1761859210415,0.04083,107580.0,107570.0,0.4823478]
[1761859210620,0.004,107580.0,107570.0,0.4823478]
[1761859211322,0.004,107580.0,107570.0,0.28746348]
[1761859211619,0.004,107580.0,107570.0,1.08194436]
[1761859211812,0.01381,107600.0,107570.0,0.55117667]
[1761859212011,0.04379646,107600.0,107590.0,0.28744618]
[1761859212218,0.06703646,107600.0,107590.0,0.28744618]
[1761859212414,0.04379646,107600.0,107590.0,0.28744618]
[1761859212609,0.00749646,107600.0,107590.0,0.28744618]
[1761859214121,0.00749646,107600.0,107590.0,0.28844618]
[1761859214517,0.00749646,107600.0,107590.0,0.2978473]
[1761859215425,0.00749646,107600.0,107590.0,0.2998473]
[1761859215926,0.04396646,107600.0,107590.0,0.2998473]
[1761859216728,0.06720646,107600.0,107590.0,0.2998473]
[1761859218224,0.06720646,107600.0,107590.0,0.3008473]
[1761859219830,0.06720646,107600.0,107590.0,1.8008473]
[1761859220222,0.05971,107600.0,107590.0,1.8008473]
[1761859220427,0.06720646,107600.0,107590.0,1.8008473]
[1761859221028,0.01381,107610.0,107600.0,0.0929567]
[1761859221218,0.01398,107620.0,107600.0,0.80227846]
[1761859221219,0.05971,107620.0,107600.0,0.80227846]
[1761859221425,0.05971,107620.0,107610.0,0.39176176]
[1761859221626,0.05971,107620.0,107610.0,0.38896176]
[1761859221823,0.00749646,107620.0,107610.0,0.48190976]
[1761859222025,0.05971,107630.0,107610.0,0.48190976]
[1761859222228,0.05971,107630.0,107620.0,0.51484088]
[1761859223330,0.05971,107630.0,107620.0,0.52434157]
[1761859223920,0.05971,107630.0,107620.0,0.52534157]
[1761859224926,0.05971,107630.0,107620.0,0.51584088]
[1761859225432,0.05971,107630.0,107620.0,0.52513388]
[1761859226833,0.01398,107630.0,107620.0,0.61807218]
[1761859227033,0.05971,107630.0,107620.0,0.52513388]
[1761859227234,0.05971,107630.0,107620.0,0.61807328]
[1761859227434,0.05971,107630.0,107620.0,0.52513388]
[1761859228637,0.05971,107630.0,107620.0,0.61807328]
[1761859233138,0.03647,107630.0,107620.0,0.61807328]
[1761859233333,0.05971,107630.0,107620.0,0.61807328]
[1761859234237,0.03722,107630.0,107620.0,0.61807328]
[1761859234442,0.01398,107630.0,107620.0,0.61807328]
[1761859234740,0.05971,107630.0,107620.0,0.52513388]
[1761859234940,0.05971,107630.0,107620.0,0.61807328]
[1761859236230,0.03647,107630.0,107620.0,0.61807328]
[1761859236543,0.05971,107630.0,107620.0,0.61807328]
[1761859238340,0.05971,107630.0,107620.0,0.52513388]
[1761859239142,0.05971,107630.0,107620.0,0.61807328]
[1761859244153,0.05971,107630.0,107620.0,0.51584088]
[1761859244450,0.05971,107630.0,107620.0,0.61078028]
[1761859246652,0.05971,107630.0,107620.0,0.62019252]
[1761859247848,0.0365,107630.0,107620.0,0.62019252]
[1761859248049,0.05906,107630.0,107620.0,0.62019252]
[1761859249249,0.01398,107630.0,107620.0,0.62019252]
[1761859249450,0.05906,107640.0,107630.0,0.0939909]
[1761859249753,0.05906,107640.0,107630.0,0.28847178]
[1761859250649,0.06006,107640.0,107630.0,0.28847178]
[1761859251355,0.06006,107640.0,107630.0,0.48295266]
[1761859252050,0.001,107640.0,107630.0,0.48295266]
[1761859252250,0.001,107640.0,107630.0,0.54938497]
[1761859253154,0.05984,107640.0,107630.0,0.54938497]
[1761859253451,0.05984,107640.0,107630.0,0.35490409]
[1761859253652,0.03728,107640.0,107630.0,0.54938497]
[1761859253853,0.05984,107640.0,107630.0,0.35490409]
[1761859254857,0.03728,107640.0,107630.0,0.35490409]
[1761859255049,0.03728,107640.0,107630.0,0.54938497]
[1761859256241,0.05984,107640.0,107630.0,0.54938497]
[1761859258158,0.03728,107640.0,107630.0,0.54938497]
[1761859258656,0.05984,107640.0,107630.0,0.54938497]
[1761859261053,0.03728,107640.0,107630.0,0.54938497]
[1761859261254,0.05906,107650.0,107640.0,0.00106]
[1761859261460,0.05906,107650.0,107640.0,0.71022176]
[1761859262151,0.05906,107650.0,107640.0,0.80314386]
[1761859262358,0.08360179,107650.0,107640.0,0.80314386]
[1761859263258,0.08360179,107650.0,107640.0,0.71022176]
[1761859263457,0.06006,107650.0,107640.0,0.71022176]
[1761859264261,0.06106,107650.0,107640.0,0.80314386]
[1761859264961,0.06106,107650.0,107640.0,0.71022176]
[1761859267463,0.06106,107650.0,107640.0,0.71002096]
[1761859270165,0.06106,107650.0,107640.0,0.0008592]
[1761859270360,0.06106,107650.0,107640.0,0.51534008]
[1761859270766,0.06106,107650.0,107640.0,0.70982096]
[1761859271360,0.06106,107650.0,107640.0,0.70931506]
[1761859272464,0.06106,107650.0,107640.0,0.77574737]
[1761859273066,0.06006,107650.0,107640.0,0.77574737]
[1761859273261,0.05906,107650.0,107640.0,0.77774737]
[1761859273471,0.05906,107650.0,107640.0,0.77874737]
[1761859273964,0.05906,107650.0,107640.0,0.77774737]
[1761859274762,0.05906,107650.0,107640.0,0.77574737]
[1761859275861,0.05906,107650.0,107640.0,0.77578737]
[1761859276063,0.05906,107650.0,107640.0,0.45554737]
[1761859276264,0.05906,107650.0,107640.0,0.70935506]
[1761859276665,0.05906,107650.0,107640.0,0.38911506]
[1761859276867,0.05906,107650.0,107640.0,0.51479713]
[1761859277174,0.65906,107650.0,107640.0,0.51479713]
[1761859277374,0.65906,107650.0,107640.0,0.70902506]
[1761859277568,0.05906,107650.0,107640.0,0.51479713]
[1761859277775,0.06186,107650.0,107640.0,0.51446793]
[1761859278073,0.06386,107650.0,107640.0,0.32024]
[1761859278269,0.06386,107650.0,107640.0,0.51446793]
[1761859278574,0.05811,107630.0,107620.0,0.19488793]
[1761859278875,0.05811,107630.0,107620.0,0.776092]
[1761859279077,0.65811,107630.0,107620.0,0.776092]
[1761859279777,0.65811,107630.0,107620.0,0.777092]
[1761859280170,0.05811,107630.0,107620.0,0.777092]
[1761859280560,0.05811,107630.0,107620.0,0.78633591]
[1761859280972,0.05811,107630.0,107620.0,0.78833591]
[1761859281374,0.05811,107630.0,107620.0,0.779092]
[1761859281566,0.05811,107630.0,107620.0,0.78821361]
[1761859281766,0.05811,107630.0,107620.0,0.779092]
[1761859282977,0.05811,107630.0,107620.0,0.458772]
[1761859283166,0.65811,107630.0,107620.0,0.51828793]
[1761859283477,0.05811,107630.0,107620.0,0.71251586]
[1761859287674,0.05811,107630.0,107620.0,0.32406]
[1761859287979,0.05811,107630.0,107620.0,0.71251586]
[1761859288868,0.03582,107640.0,107630.0,0.00033]
[1761859289073,0.05811,107640.0,107630.0,0.38911586]
[1761859290370,0.05811,107640.0,107630.0,0.455772]
[1761859290775,0.05811,107640.0,107630.0,0.458572]
[1761859290973,0.0587,107650.0,107640.0,0.00066]
[1761859291177,0.0587,107650.0,107640.0,0.70955586]
[1761859305387,0.03641,107650.0,107640.0,0.70955586]
[1761859305982,0.05856,107650.0,107640.0,0.70955586]
[1761859306184,0.05856,107650.0,107640.0,0.3211]
[1761859306389,0.05856,107650.0,107640.0,0.70955586]
[1761859313688,0.25278793,107650.0,107640.0,0.00066]
[1761859313890,0.25278793,107650.0,107640.0,0.32086]
[1761859314193,0.85278793,107650.0,107640.0,0.32086]
[1761859314493,0.65856,107650.0,107640.0,0.51508793]
[1761859315088,0.68250722,107650.0,107640.0,0.51508793]
[1761859315487,0.08250722,107650.0,107640.0,0.51508793]
[1761859315891,0.08250722,107650.0,107640.0,0.70931586]
[1761859316894,0.08250722,107650.0,107640.0,0.51508793]
[1761859321301,0.27953515,107650.0,107640.0,0.51442793]
[1761859321500,0.27673515,107650.0,107640.0,0.51475793]
[1761859321691,0.27673515,107650.0,107640.0,0.51508793]
[1761859322302,0.08250722,107650.0,107640.0,0.51508793]
[1761859322504,0.27673515,107650.0,107640.0,0.51508793]
[1761859322801,0.08250722,107650.0,107640.0,0.51508793]
[1761859323485,0.08250722,107650.0,107640.0,0.32086]
[1761859323800,0.08250722,107650.0,107640.0,0.51508793]
[1761859324390,0.05856,107650.0,107640.0,0.70931586]
[1761859324896,0.06769648,107660.0,107650.0,0.00066]
[1761859325092,0.09165678,107660.0,107650.0,0.19488793]
[1761859325705,0.05805,107650.0,107640.0,0.51508793]
[1761859326104,0.05805,107650.0,107640.0,0.51516793]
[1761859327399,0.05805,107650.0,107640.0,0.19488793]
[1761859327698,0.05805,107650.0,107640.0,0.51516793]
[1761859330503,0.25227793,107650.0,107640.0,0.51516793]
[1761859330695,0.2762396,107650.0,107640.0,0.51512793]
[1761859331304,0.08201167,107650.0,107640.0,0.51512793]
[1761859331507,0.2762396,107650.0,107640.0,0.51512793]
[1761859332105,0.08201167,107650.0,107640.0,0.51512793]
[1761859333397,0.08201167,107650.0,107640.0,0.3209]
[1761859337108,0.08201167,107650.0,107640.0,0.51520014]
[1761859337315,0.08201167,107650.0,107640.0,0.3209]
[1761859337612,0.08201167,107650.0,107640.0,0.51520014]
[1761859338905,0.05805,107650.0,107640.0,0.51520014]
[1761859339310,0.08201137,107650.0,107640.0,0.51520014]
[1761859339810,0.05805,107650.0,107640.0,0.51520014]
[1761859343914,0.05805,107650.0,107640.0,0.19496014]
[1761859344103,0.05805,107650.0,107640.0,0.51516014]
[1761859349213,0.05805,107650.0,107640.0,0.32086]
[1761859349401,0.05805,107650.0,107640.0,0.51516014]
[1761859353313,0.08165345,107650.0,107640.0,0.51516014]
[1761859353521,0.08165345,107650.0,107640.0,0.32086]
[1761859353815,0.08165345,107650.0,107640.0,0.51516014]
[1761859356025,0.08165345,107650.0,107640.0,0.32086]
[1761859362615,0.05805,107650.0,107640.0,0.51516014]
[1761859365619,0.05805,107650.0,107640.0,0.32086]
[1761859366122,0.05805,107650.0,107640.0,0.51516014]
[1761859367421,0.08166588,107650.0,107640.0,0.51516014]
[1761859369225,0.05805,107650.0,107640.0,0.51516014]
[1761859370027,0.0816679,107650.0,107640.0,0.51516014]
[1761859371730,0.0816679,107650.0,107640.0,0.32086]
[1761859372028,0.0816679,107650.0,107640.0,0.51516014]
[1761859373921,0.0816679,107650.0,107640.0,0.32086]
[1761859378034,0.27596804,107650.0,107640.0,0.32086]
[1761859378428,0.0816679,107650.0,107640.0,0.32086]
[1761859379024,0.27596804,107650.0,107640.0,0.32082]
[1761859379227,0.27876804,107650.0,107640.0,0.32016]
[1761859379427,0.27596804,107650.0,107640.0,0.32049]
[1761859379633,0.27596804,107650.0,107640.0,0.32082]
[1761859380428,0.27596804,107650.0,107640.0,0.32016]
[1761859380734,0.27596804,107650.0,107640.0,0.32049]
[1761859380934,0.27596804,107650.0,107640.0,0.32082]
[1761859381835,0.0816679,107650.0,107640.0,0.32082]
[1761859384042,0.27596804,107650.0,107640.0,0.32082]
[1761859386231,0.27596804,107650.0,107640.0,1.82082]
[1761859388550,0.0816679,107650.0,107640.0,1.82082]
[1761859390650,0.05805,107650.0,107640.0,1.82082]
[1761859391146,0.31495648,107660.0,107650.0,0.00066]
[1761859391351,0.33852593,107660.0,107650.0,0.00066]
[1761859392352,0.33952593,107660.0,107650.0,0.00066]
[1761859392542,0.53382607,107660.0,107650.0,0.00066]
[1761859393047,0.05943,107650.0,107640.0,1.82016]
[1761859393249,0.27729959,107650.0,107640.0,1.82016]
[1761859393450,0.28015377,107650.0,107640.0,1.82016]
[1761859394049,0.47450809,107650.0,107640.0,1.82016]
[1761859394252,0.47450809,107650.0,107640.0,0.32016]
[1761859394453,0.28015377,107650.0,107640.0,0.32016]
[1761859394854,0.27735377,107650.0,107640.0,0.32082]
[1761859395256,0.28235377,107650.0,107640.0,0.32082]
[1761859395554,0.28235377,107650.0,107640.0,0.00066]
[1761859396143,0.28535377,107650.0,107640.0,0.00066]
[1761859396750,0.28435377,107650.0,107640.0,0.00066]
[1761859397054,0.27935377,107650.0,107640.0,0.00066]
[1761859397350,0.28235377,107650.0,107640.0,0.00066]
[1761859398552,0.28235377,107650.0,107640.0,0.19501432]
[1761859399058,0.28235377,107650.0,107640.0,0.00066]
[1761859401156,0.28235377,107650.0,107640.0,0.19501432]
[1761859401758,0.08799945,107650.0,107640.0,0.19501432]
[1761859401953,0.28235377,107650.0,107640.0,0.19501432]
[1761859402659,0.08799945,107650.0,107640.0,0.19501432]
[1761859403056,0.28235377,107650.0,107640.0,0.19501432]
[1761859403361,0.08799945,107650.0,107640.0,0.19501432]
[1761859403552,0.08799945,107650.0,107640.0,0.38936864]
[1761859403861,0.08799945,107650.0,107640.0,0.19501432]
[1761859404859,0.02856945,107650.0,107640.0,0.39216864]
[1761859405058,0.02856945,107650.0,107640.0,0.38936864]
[1761859405257,0.02445,107650.0,107640.0,0.38936864]
[1761859405858,0.0457,107650.0,107640.0,0.38936864]
[1761859406264,0.06959188,107650.0,107640.0,0.38936864]
[1761859406663,0.08332188,107650.0,107640.0,0.38936864]
[1761859406866,0.08332188,107650.0,107640.0,0.19501432]
[1761859408166,0.08432188,107650.0,107640.0,0.51517432]
[1761859410262,0.08532188,107650.0,107640.0,0.32082]
[1761859410575,0.07159188,107650.0,107640.0,0.70952864]
[1761859411164,0.08532188,107650.0,107640.0,0.70952864]
[1761859411364,0.06143,107650.0,107640.0,0.70952864]
[1761859411660,0.03818,107650.0,107640.0,0.70952864]
[1761859411857,0.002,107650.0,107640.0,0.70952864]
[1761859414365,0.02445,107650.0,107640.0,0.70952864]
[1761859416662,0.02245,107650.0,107640.0,0.70952864]
[1761859419361,0.0457,107650.0,107640.0,0.70952864]
[1761859419764,0.05943,107650.0,107640.0,0.51517432]